[Event "Titled Tuesday Blitz August 22 Early 2023"]
[White "TimGrutter03"]
[Black "Sjugirov, Sanan"]
[BlackFideId "4189302"]
[WhiteElo "2594"]
[BlackElo "2921"]
[Result "0-1"]
[Round "4"]
[TimeControl "180+1"]
[Date "2023.08.22"]
[WhiteClock "0:00:11"]
[BlackClock "0:00:25"]
[Board "21"]

1. Nf3 {[%clk 0:03:00]}  d5 {[%clk 0:02:51]} 2. c4 {[%clk 0:03:00]}  e6 {[%clk 0:02:51]} 3. g3 {[%clk 0:03:00]}  Nf6 {[%clk 0:02:50]} 4. Bg2 {[%clk 0:03:00]}  dxc4 {[%clk 0:02:50]} 5. Qa4+ {[%clk 0:03:00]}  Bd7 {[%clk 0:02:50]} 6. Qxc4 {[%clk 0:03:00]}  c5 {[%clk 0:02:50]} 7. O-O {[%clk 0:03:00]}  Bc6 {[%clk 0:02:36]} 8. Qc2 {[%clk 0:02:51]}  Nbd7 {[%clk 0:02:35]} 9. a3 {[%clk 0:02:47]}  Be7 {[%clk 0:02:34]} 10. b3 {[%clk 0:02:46]}  O-O {[%clk 0:02:33]} 11. Bb2 {[%clk 0:02:46]}  Rc8 {[%clk 0:02:32]} 12. d3 {[%clk 0:02:46]}  b5 {[%clk 0:02:31]} 13. Nbd2 {[%clk 0:02:44]}  Nb6 {[%clk 0:02:28]} 14. Rac1 {[%clk 0:02:44]}  Ba8 {[%clk 0:02:23]} 15. Qb1 {[%clk 0:02:43]}  a5 {[%clk 0:02:11]} 16. Rfd1 {[%clk 0:02:39]}  a4 {[%clk 0:02:06]} 17. bxa4 {[%clk 0:02:32]}  Nxa4 {[%clk 0:02:02]} 18. Ba1 {[%clk 0:02:27]}  Rb8 {[%clk 0:02:00]} 19. Ne4 {[%clk 0:02:24]}  Nxe4 {[%clk 0:01:52]} 20. dxe4 {[%clk 0:02:25]}  Qc8 {[%clk 0:01:40]} 21. Ne5 {[%clk 0:02:10]}  Rd8 {[%clk 0:01:35]} 22. Rxd8+ {[%clk 0:02:10]}  Qxd8 {[%clk 0:01:35]} 23. Rd1 {[%clk 0:02:09]}  Qe8 {[%clk 0:01:34]} 24. Qc2 {[%clk 0:01:56]}  c4 {[%clk 0:01:28]} 25. h4 {[%clk 0:01:39]}  Bxa3 {[%clk 0:01:15]} 26. h5 {[%clk 0:01:39]}  h6 {[%clk 0:01:11]} 27. Ng4 {[%clk 0:01:31]}  Rd8 {[%clk 0:00:58]} 28. e5 {[%clk 0:01:13]}  Bxg2 {[%clk 0:00:53]} 29. Kxg2 {[%clk 0:01:14]}  Bf8 {[%clk 0:00:44]} 30. e3 {[%clk 0:00:56]}  Rxd1 {[%clk 0:00:34]} 31. Qxd1 {[%clk 0:00:57]}  b4 {[%clk 0:00:32]} 32. Qd4 {[%clk 0:00:44]}  Qc6+ {[%clk 0:00:30]} 33. f3 {[%clk 0:00:38]}  c3 {[%clk 0:00:25]} 34. Qd1 {[%clk 0:00:22]}  c2 {[%clk 0:00:24]} 35. Qc1 {[%clk 0:00:11]}  b3 {[%clk 0:00:25]} 0-1


[Site "https://www.chess.com"]

[Event "Titled Tuesday Blitz August 22 Early 2023"]
[White "Bluebaum, Matthias"]
[Black "Dehtiarov, Roman"]
[WhiteFideId "24651516"]
[BlackFideId "14186640"]
[WhiteElo "3019"]
[BlackElo "2696"]
[Result "1-0"]
[Round "4"]
[TimeControl "180+1"]
[Date "2023.08.22"]
[WhiteClock "0:01:17"]
[BlackClock "0:00:04"]
[Board "25"]

1. d4 {[%clk 0:03:00]}  Nf6 {[%clk 0:02:59]} 2. c4 {[%clk 0:03:01]}  e6 {[%clk 0:02:59]} 3. Nc3 {[%clk 0:03:02]}  Bb4 {[%clk 0:02:58]} 4. e3 {[%clk 0:03:02]}  b6 {[%clk 0:02:58]} 5. Bd3 {[%clk 0:03:02]}  Bb7 {[%clk 0:02:58]} 6. Nf3 {[%clk 0:03:03]}  O-O {[%clk 0:02:58]} 7. Bd2 {[%clk 0:03:03]}  Qe7 {[%clk 0:02:58]} 8. Rc1 {[%clk 0:03:00]}  d6 {[%clk 0:02:58]} 9. O-O {[%clk 0:02:59]}  Nbd7 {[%clk 0:02:57]} 10. Qc2 {[%clk 0:03:00]}  Bxc3 {[%clk 0:02:56]} 11. Bxc3 {[%clk 0:03:01]}  h6 {[%clk 0:02:56]} 12. e4 {[%clk 0:03:01]}  e5 {[%clk 0:02:56]} 13. Rfe1 {[%clk 0:03:01]}  Rfe8 {[%clk 0:02:55]} 14. b3 {[%clk 0:03:01]}  a5 {[%clk 0:02:53]} 15. Rcd1 {[%clk 0:02:59]}  Rad8 {[%clk 0:02:51]} 16. Qb2 {[%clk 0:02:59]}  Nh5 {[%clk 0:02:46]} 17. Bf1 {[%clk 0:02:52]}  Nf4 {[%clk 0:02:44]} 18. d5 {[%clk 0:02:50]}  Rf8 {[%clk 0:02:23]} 19. g3 {[%clk 0:02:49]}  Nh5 {[%clk 0:02:20]} 20. Nh4 {[%clk 0:02:49]}  g6 {[%clk 0:02:19]} 21. Qc1 {[%clk 0:02:47]}  Kh7 {[%clk 0:02:19]} 22. Bd2 {[%clk 0:02:47]}  g5 {[%clk 0:02:11]} 23. Nf5 {[%clk 0:02:47]}  Qf6 {[%clk 0:02:11]} 24. Be2 {[%clk 0:02:30]}  Ng7 {[%clk 0:02:02]} 25. Ne3 {[%clk 0:02:30]}  Nc5 {[%clk 0:01:57]} 26. Qc2 {[%clk 0:02:30]}  Qg6 {[%clk 0:01:56]} 27. Bf3 {[%clk 0:02:24]}  f5 {[%clk 0:01:44]} 28. exf5 {[%clk 0:02:25]}  Nxf5 {[%clk 0:01:42]} 29. Nxf5 {[%clk 0:02:25]}  Qxf5 {[%clk 0:01:39]} 30. Qxf5+ {[%clk 0:02:25]}  Rxf5 {[%clk 0:01:40]} 31. Bg4 {[%clk 0:02:26]}  Rf6 {[%clk 0:01:40]} 32. Be3 {[%clk 0:02:26]}  Bc8 {[%clk 0:01:35]} 33. Bxc8 {[%clk 0:02:20]}  Rxc8 {[%clk 0:01:36]} 34. Re2 {[%clk 0:02:17]}  Rcf8 {[%clk 0:01:35]} 35. Kg2 {[%clk 0:02:16]}  g4 {[%clk 0:01:18]} 36. h3 {[%clk 0:02:16]}  Ne4 {[%clk 0:01:02]} 37. Rh1 {[%clk 0:02:10]}  gxh3+ {[%clk 0:00:54]} 38. Rxh3 {[%clk 0:02:11]}  Nc3 {[%clk 0:00:51]} 39. Re1 {[%clk 0:02:09]}  Kg7 {[%clk 0:00:20]} 40. Reh1 {[%clk 0:02:06]}  Rh8 {[%clk 0:00:20]} 41. Rh4 {[%clk 0:02:06]}  Nxa2 {[%clk 0:00:18]} 42. g4 {[%clk 0:02:01]}  Rg6 {[%clk 0:00:16]} 43. g5 {[%clk 0:02:01]}  Nb4 {[%clk 0:00:16]} 44. Kf1 {[%clk 0:02:00]}  Nc2 {[%clk 0:00:12]} 45. gxh6+ {[%clk 0:01:59]}  Kh7 {[%clk 0:00:12]} 46. Bc1 {[%clk 0:01:50]}  Rf8 {[%clk 0:00:12]} 47. R4h3 {[%clk 0:01:29]}  Nd4 {[%clk 0:00:08]} 48. Rd3 {[%clk 0:01:21]}  Rf3 {[%clk 0:00:04]} 49. Rxf3 {[%clk 0:01:20]}  Nxf3 {[%clk 0:00:05]} 50. Rh3 {[%clk 0:01:21]}  Rg1+ {[%clk 0:00:04]} 51. Ke2 {[%clk 0:01:22]}  Rxc1 {[%clk 0:00:05]} 52. Rxf3 {[%clk 0:01:22]}  Kxh6 {[%clk 0:00:04]} 53. Rf7 {[%clk 0:01:21]}  Rc3 {[%clk 0:00:03]} 54. Rxc7 {[%clk 0:01:21]}  Rxb3 {[%clk 0:00:04]} 55. Rc6 {[%clk 0:01:22]}  Kg5 {[%clk 0:00:03]} 56. Rxd6 {[%clk 0:01:22]}  Kf5 {[%clk 0:00:02]} 57. Rd8 {[%clk 0:01:21]}  Rc3 {[%clk 0:00:02]} 58. Rf8+ {[%clk 0:01:21]}  Kg6 {[%clk 0:00:02]} 59. d6 {[%clk 0:01:22]}  Rc2+ {[%clk 0:00:01]} 60. Ke3 {[%clk 0:01:13]}  Rc3+ {[%clk 0:00:01]} 61. Ke4 {[%clk 0:01:14]}  Rxc4+ {[%clk 0:00:01]} 62. Kxe5 {[%clk 0:01:14]}  Rc5+ {[%clk 0:00:02]} 63. Ke6 {[%clk 0:01:15]}  Rc6 {[%clk 0:00:02]} 64. Ke7 {[%clk 0:01:15]}  Rc1 {[%clk 0:00:02]} 65. d7 {[%clk 0:01:15]}  Re1+ {[%clk 0:00:03]} 66. Kd6 {[%clk 0:01:15]}  Rd1+ {[%clk 0:00:03]} 67. Kc7 {[%clk 0:01:16]}  Rc1+ {[%clk 0:00:04]} 68. Kxb6 {[%clk 0:01:17]}  Rb1+ {[%clk 0:00:04]} 69. Ka6 {[%clk 0:01:17]}  a4 {[%clk 0:00:04]} 70. d8=Q {[%clk 0:01:17]}  a3 {[%clk 0:00:04]} 71. Qf6+ {[%clk 0:01:17]} 1-0


[Site "https://www.chess.com"]

[Event "Titled Tuesday Blitz August 22 Early 2023"]
[White "KarolKacprzak"]
[Black "Andreikin, Dmitry"]
[BlackFideId "4158814"]
[WhiteElo "2689"]
[BlackElo "2999"]
[Result "0-1"]
[Round "4"]
[TimeControl "180+1"]
[Date "2023.08.22"]
[WhiteClock "0:00:10"]
[BlackClock "0:00:42"]
[Board "26"]

1. e4 {[%clk 0:03:00]}  c5 {[%clk 0:02:48]} 2. Nf3 {[%clk 0:03:01]}  e6 {[%clk 0:02:48]} 3. d4 {[%clk 0:03:01]}  cxd4 {[%clk 0:02:46]} 4. Nxd4 {[%clk 0:03:02]}  Nc6 {[%clk 0:02:45]} 5. Nc3 {[%clk 0:03:01]}  Qc7 {[%clk 0:02:45]} 6. Be3 {[%clk 0:02:57]}  a6 {[%clk 0:02:44]} 7. Qf3 {[%clk 0:02:50]}  Nf6 {[%clk 0:02:43]} 8. O-O-O {[%clk 0:02:48]}  Rb8 {[%clk 0:02:43]} 9. Nxc6 {[%clk 0:02:29]}  bxc6 {[%clk 0:02:44]} 10. e5 {[%clk 0:02:15]}  Nd5 {[%clk 0:02:36]} 11. Bd4 {[%clk 0:02:07]}  c5 {[%clk 0:02:18]} 12. Nxd5 {[%clk 0:01:53]}  exd5 {[%clk 0:02:19]} 13. Bc3 {[%clk 0:01:53]}  Bb7 {[%clk 0:01:57]} 14. Bd2 {[%clk 0:01:31]}  d4 {[%clk 0:01:49]} 15. Qg4 {[%clk 0:01:29]}  Bd5 {[%clk 0:01:48]} 16. Kb1 {[%clk 0:01:25]}  Be6 {[%clk 0:01:32]} 17. Qf4 {[%clk 0:01:17]}  Be7 {[%clk 0:01:28]} 18. c4 {[%clk 0:01:12]}  O-O {[%clk 0:01:07]} 19. Bd3 {[%clk 0:01:12]}  Qb7 {[%clk 0:01:07]} 20. Bc1 {[%clk 0:01:07]}  Qb4 {[%clk 0:01:05]} 21. Qe4 {[%clk 0:00:54]}  g6 {[%clk 0:01:05]} 22. Qe2 {[%clk 0:00:55]}  Qa4 {[%clk 0:01:05]} 23. Bh6 {[%clk 0:00:47]}  Rfc8 {[%clk 0:00:55]} 24. Rd2 {[%clk 0:00:36]}  Rb4 {[%clk 0:00:52]} 25. Rc1 {[%clk 0:00:34]}  Rcb8 {[%clk 0:00:53]} 26. Rdc2 {[%clk 0:00:29]}  Qa3 {[%clk 0:00:45]} 27. Ka1 {[%clk 0:00:20]}  Qa4 {[%clk 0:00:44]} 28. Bd2 {[%clk 0:00:19]}  Rb3 {[%clk 0:00:45]} 29. Kb1 {[%clk 0:00:14]}  Ra3 {[%clk 0:00:44]} 30. b3 {[%clk 0:00:11]}  Rbxb3+ {[%clk 0:00:42]} 31. axb3 {[%clk 0:00:09]}  Ra1+ {[%clk 0:00:42]} 32. Kb2 {[%clk 0:00:10]}  Qa2# {[%clk 0:00:42]} 0-1


[Site "https://www.chess.com"]

[Event "Titled Tuesday Blitz August 22 Early 2023"]
[White "Kovalenko, Igor"]
[Black "Skliarov, Viktor"]
[WhiteFideId "14117908"]
[BlackFideId "14106736"]
[WhiteElo "2941"]
[BlackElo "2688"]
[Result "1/2-1/2"]
[Round "4"]
[TimeControl "180+1"]
[Date "2023.08.22"]
[WhiteClock "0:00:28"]
[BlackClock "0:00:07"]
[Board "27"]

1. c4 {[%clk 0:03:00]}  e5 {[%clk 0:03:00]} 2. Nc3 {[%clk 0:02:59]}  Bb4 {[%clk 0:02:53]} 3. Qb3 {[%clk 0:02:56]}  Bxc3 {[%clk 0:02:50]} 4. Qxc3 {[%clk 0:02:55]}  Nc6 {[%clk 0:02:51]} 5. b4 {[%clk 0:02:54]}  d6 {[%clk 0:02:34]} 6. e3 {[%clk 0:02:49]}  Nf6 {[%clk 0:02:33]} 7. b5 {[%clk 0:02:41]}  Ne7 {[%clk 0:02:33]} 8. Nf3 {[%clk 0:02:39]}  O-O {[%clk 0:02:31]} 9. Bb2 {[%clk 0:02:38]}  a6 {[%clk 0:02:29]} 10. a4 {[%clk 0:02:38]}  axb5 {[%clk 0:02:29]} 11. axb5 {[%clk 0:02:37]}  Rxa1+ {[%clk 0:02:30]} 12. Bxa1 {[%clk 0:02:38]}  Bg4 {[%clk 0:02:21]} 13. h3 {[%clk 0:02:25]}  Bh5 {[%clk 0:02:21]} 14. d4 {[%clk 0:02:25]}  e4 {[%clk 0:01:42]} 15. Nd2 {[%clk 0:02:24]}  d5 {[%clk 0:01:40]} 16. g4 {[%clk 0:02:23]}  Bg6 {[%clk 0:01:39]} 17. c5 {[%clk 0:02:19]}  Qd7 {[%clk 0:01:34]} 18. Be2 {[%clk 0:02:08]}  Ra8 {[%clk 0:01:32]} 19. Nb3 {[%clk 0:02:08]}  h5 {[%clk 0:01:12]} 20. g5 {[%clk 0:02:02]}  Nh7 {[%clk 0:01:12]} 21. h4 {[%clk 0:02:03]}  f6 {[%clk 0:01:12]} 22. gxf6 {[%clk 0:01:56]}  Nxf6 {[%clk 0:01:12]} 23. Bb2 {[%clk 0:01:55]}  Ng4 {[%clk 0:01:09]} 24. Na5 {[%clk 0:01:46]}  Qf5 {[%clk 0:00:43]} 25. Rf1 {[%clk 0:01:34]}  Nh2 {[%clk 0:00:37]} 26. Rg1 {[%clk 0:01:34]}  Rf8 {[%clk 0:00:32]} 27. Rg2 {[%clk 0:01:14]}  Nf3+ {[%clk 0:00:23]} 28. Bxf3 {[%clk 0:01:13]}  Qxf3 {[%clk 0:00:18]} 29. Rh2 {[%clk 0:01:13]}  Bf5 {[%clk 0:00:13]} 30. Qc2 {[%clk 0:00:52]}  Bg4 {[%clk 0:00:12]} 31. Bc3 {[%clk 0:00:51]}  Nf5 {[%clk 0:00:10]} 32. Nxb7 {[%clk 0:00:49]}  Nxe3 {[%clk 0:00:05]} 33. Qd2 {[%clk 0:00:41]}  Nc4 {[%clk 0:00:03]} 34. Qc2 {[%clk 0:00:38]}  e3 {[%clk 0:00:04]} 35. Na5 {[%clk 0:00:35]}  exf2+ {[%clk 0:00:04]} 36. Rxf2 {[%clk 0:00:35]}  Qe3+ {[%clk 0:00:05]} 37. Kf1 {[%clk 0:00:33]}  Bh3+ {[%clk 0:00:05]} 38. Kg1 {[%clk 0:00:32]}  Qg3+ {[%clk 0:00:05]} 39. Rg2 {[%clk 0:00:32]}  Bxg2 {[%clk 0:00:05]} 40. Qxg2 {[%clk 0:00:32]}  Qxg2+ {[%clk 0:00:05]} 41. Kxg2 {[%clk 0:00:32]}  Nxa5 {[%clk 0:00:02]} 42. Bxa5 {[%clk 0:00:33]}  Rf7 {[%clk 0:00:02]} 43. Kg3 {[%clk 0:00:29]}  Kf8 {[%clk 0:00:03]} 44. Bd2 {[%clk 0:00:28]}  Ke8 {[%clk 0:00:03]} 45. Bf4 {[%clk 0:00:29]}  Kd7 {[%clk 0:00:04]} 46. Kf3 {[%clk 0:00:21]}  g6 {[%clk 0:00:04]} 47. Kg3 {[%clk 0:00:21]}  Re7 {[%clk 0:00:03]} 48. Be5 {[%clk 0:00:20]}  Rf7 {[%clk 0:00:03]} 49. Bf4 {[%clk 0:00:21]}  Kc8 {[%clk 0:00:04]} 50. Kf3 {[%clk 0:00:21]}  Kb7 {[%clk 0:00:04]} 51. Ke3 {[%clk 0:00:21]}  Rf8 {[%clk 0:00:04]} 52. Kf3 {[%clk 0:00:21]}  Ra8 {[%clk 0:00:04]} 53. Be5 {[%clk 0:00:20]}  Ra5 {[%clk 0:00:04]} 54. Kf4 {[%clk 0:00:20]}  Rxb5 {[%clk 0:00:04]} 55. Kg5 {[%clk 0:00:21]}  Rb2 {[%clk 0:00:03]} 56. Kxg6 {[%clk 0:00:21]}  Rg2+ {[%clk 0:00:03]} 57. Kxh5 {[%clk 0:00:22]}  c6 {[%clk 0:00:04]} 58. Kh6 {[%clk 0:00:22]}  Kc8 {[%clk 0:00:04]} 59. h5 {[%clk 0:00:23]}  Kd7 {[%clk 0:00:05]} 60. Kh7 {[%clk 0:00:24]}  Ke8 {[%clk 0:00:06]} 61. h6 {[%clk 0:00:25]}  Kf7 {[%clk 0:00:06]} 62. Bg7 {[%clk 0:00:25]}  Rg4 {[%clk 0:00:07]} 63. Kh8 {[%clk 0:00:25]}  Rg2 {[%clk 0:00:07]} 64. Kh7 {[%clk 0:00:26]}  Rg4 {[%clk 0:00:07]} 65. Kh8 {[%clk 0:00:27]}  Rg2 {[%clk 0:00:07]} 66. Kh7 {[%clk 0:00:28]} 1/2-1/2


[Site "https://www.chess.com"]

[Event "Titled Tuesday Blitz August 22 Early 2023"]
[White "Esipenko, Andrey"]
[Black "Pert, Richard G"]
[WhiteFideId "24175439"]
[BlackFideId "404748"]
[WhiteElo "2934"]
[BlackElo "2681"]
[Result "1-0"]
[Round "4"]
[TimeControl "180+1"]
[Date "2023.08.22"]
[WhiteClock "0:00:50"]
[BlackClock "0:00:00"]
[Board "29"]

1. e4 {[%clk 0:02:55]}  c5 {[%clk 0:02:59]} 2. Nf3 {[%clk 0:02:55]}  d6 {[%clk 0:02:59]} 3. g3 {[%clk 0:02:51]}  Nf6 {[%clk 0:02:54]} 4. d3 {[%clk 0:02:51]}  g6 {[%clk 0:02:51]} 5. Bg2 {[%clk 0:02:49]}  Bg7 {[%clk 0:02:51]} 6. O-O {[%clk 0:02:49]}  O-O {[%clk 0:02:51]} 7. a4 {[%clk 0:02:49]}  Nc6 {[%clk 0:02:50]} 8. Na3 {[%clk 0:02:49]}  Be6 {[%clk 0:02:30]} 9. h3 {[%clk 0:02:44]}  Rc8 {[%clk 0:02:27]} 10. Ng5 {[%clk 0:02:40]}  Bd7 {[%clk 0:02:27]} 11. f4 {[%clk 0:02:41]}  h6 {[%clk 0:02:13]} 12. Nf3 {[%clk 0:02:41]}  e6 {[%clk 0:02:12]} 13. c3 {[%clk 0:02:41]}  d5 {[%clk 0:02:09]} 14. e5 {[%clk 0:02:36]}  Nh7 {[%clk 0:02:03]} 15. Be3 {[%clk 0:02:34]}  b6 {[%clk 0:02:01]} 16. Nb5 {[%clk 0:02:30]}  f6 {[%clk 0:01:56]} 17. d4 {[%clk 0:02:30]}  cxd4 {[%clk 0:01:51]} 18. cxd4 {[%clk 0:02:29]}  fxe5 {[%clk 0:01:49]} 19. fxe5 {[%clk 0:02:28]}  Nb4 {[%clk 0:01:43]} 20. Bd2 {[%clk 0:02:15]}  a5 {[%clk 0:01:23]} 21. Nd6 {[%clk 0:02:15]}  Rc7 {[%clk 0:01:19]} 22. Bxb4 {[%clk 0:01:59]}  axb4 {[%clk 0:01:20]} 23. Qd3 {[%clk 0:02:00]}  Be8 {[%clk 0:01:16]} 24. h4 {[%clk 0:02:00]}  g5 {[%clk 0:01:14]} 25. Bh3 {[%clk 0:01:59]}  Qe7 {[%clk 0:01:08]} 26. hxg5 {[%clk 0:01:58]}  Nxg5 {[%clk 0:01:08]} 27. Nxg5 {[%clk 0:01:57]}  Rxf1+ {[%clk 0:01:04]} 28. Rxf1 {[%clk 0:01:55]}  hxg5 {[%clk 0:01:04]} 29. Bg4 {[%clk 0:01:30]}  Bxa4 {[%clk 0:00:53]} 30. Rf7 {[%clk 0:01:23]}  Qxf7 {[%clk 0:00:36]} 31. Nxf7 {[%clk 0:01:22]}  Kxf7 {[%clk 0:00:37]} 32. Bxe6+ {[%clk 0:01:22]}  Kxe6 {[%clk 0:00:33]} 33. Qg6+ {[%clk 0:01:22]}  Kd7 {[%clk 0:00:32]} 34. Qxg7+ {[%clk 0:01:21]}  Kc8 {[%clk 0:00:33]} 35. Qg8+ {[%clk 0:01:20]}  Kb7 {[%clk 0:00:32]} 36. Qxd5+ {[%clk 0:01:20]}  Bc6 {[%clk 0:00:32]} 37. Qe6 {[%clk 0:01:08]}  Bf3 {[%clk 0:00:30]} 38. Kf2 {[%clk 0:01:03]}  g4 {[%clk 0:00:30]} 39. b3 {[%clk 0:01:01]}  Rc2+ {[%clk 0:00:23]} 40. Ke3 {[%clk 0:01:01]}  Re2+ {[%clk 0:00:22]} 41. Kf4 {[%clk 0:01:01]}  Re4+ {[%clk 0:00:21]} 42. Kg5 {[%clk 0:01:00]}  Rxd4 {[%clk 0:00:20]} 43. Qf7+ {[%clk 0:01:00]}  Ka6 {[%clk 0:00:20]} 44. e6 {[%clk 0:00:58]}  Rd5+ {[%clk 0:00:21]} 45. Kh4 {[%clk 0:00:56]}  Re5 {[%clk 0:00:16]} 46. Qd7 {[%clk 0:00:56]}  Bd5 {[%clk 0:00:09]} 47. Qd6 {[%clk 0:00:56]}  Rf5 {[%clk 0:00:07]} 48. e7 {[%clk 0:00:56]}  Bf7 {[%clk 0:00:07]} 49. Kxg4 {[%clk 0:00:49]}  Rf1 {[%clk 0:00:00]} 50. Qd3+ {[%clk 0:00:50]} 1-0


[Site "https://www.chess.com"]

[Event "Titled Tuesday Blitz August 22 Early 2023"]
[White "Alex_Sahakyan2006"]
[Black "Kozak, Adam"]
[BlackFideId "753246"]
[WhiteElo "2679"]
[BlackElo "2931"]
[Result "1-0"]
[Round "4"]
[TimeControl "180+1"]
[Date "2023.08.22"]
[WhiteClock "0:01:34"]
[BlackClock "0:01:17"]
[Board "30"]

1. e4 {[%clk 0:03:00]}  c5 {[%clk 0:02:36]} 2. Nc3 {[%clk 0:03:00]}  a6 {[%clk 0:02:36]} 3. g3 {[%clk 0:03:00]}  b5 {[%clk 0:02:36]} 4. Bg2 {[%clk 0:03:00]}  Bb7 {[%clk 0:02:36]} 5. d3 {[%clk 0:03:01]}  g6 {[%clk 0:02:37]} 6. Be3 {[%clk 0:02:49]}  Bg7 {[%clk 0:02:30]} 7. Bxc5 {[%clk 0:02:41]}  Qa5 {[%clk 0:02:29]} 8. Be3 {[%clk 0:02:31]}  b4 {[%clk 0:02:29]} 9. Nd5 {[%clk 0:02:19]}  Bxd5 {[%clk 0:02:19]} 10. exd5 {[%clk 0:02:20]}  Bxb2 {[%clk 0:02:19]} 11. Ne2 {[%clk 0:02:01]}  Bxa1 {[%clk 0:02:11]} 12. Qxa1 {[%clk 0:02:02]}  Nf6 {[%clk 0:02:11]} 13. d6 {[%clk 0:02:02]}  Nc6 {[%clk 0:02:05]} 14. dxe7 {[%clk 0:02:01]}  Kxe7 {[%clk 0:01:57]} 15. O-O {[%clk 0:01:49]}  Qe5 {[%clk 0:01:35]} 16. Nd4 {[%clk 0:01:35]}  Kf8 {[%clk 0:01:20]} 17. Bh6+ {[%clk 0:01:34]}  Kg8 {[%clk 0:01:18]} 18. Nxc6 {[%clk 0:01:34]}  Qxa1 {[%clk 0:01:17]} 19. Ne7# {[%clk 0:01:34]} 1-0


[Site "https://www.chess.com"]

[Event "Titled Tuesday Blitz August 22 Early 2023"]
[White "Pichot, Alan"]
[Black "Plazuelo Pascual, Juan"]
[WhiteFideId "110973"]
[BlackFideId "32059566"]
[WhiteElo "2902"]
[BlackElo "2645"]
[Result "0-1"]
[Round "4"]
[TimeControl "180+1"]
[Date "2023.08.22"]
[WhiteClock "0:01:10"]
[BlackClock "0:01:34"]
[Board "34"]

1. e4 {[%clk 0:03:00]}  c5 {[%clk 0:03:00]} 2. Nf3 {[%clk 0:03:01]}  e6 {[%clk 0:03:00]} 3. b3 {[%clk 0:03:01]}  Nc6 {[%clk 0:02:59]} 4. Bb2 {[%clk 0:03:00]}  a6 {[%clk 0:03:00]} 5. c4 {[%clk 0:03:00]}  Qc7 {[%clk 0:02:59]} 6. g3 {[%clk 0:03:00]}  Nf6 {[%clk 0:02:59]} 7. e5 {[%clk 0:03:00]}  Ng4 {[%clk 0:02:58]} 8. Qe2 {[%clk 0:03:00]}  d6 {[%clk 0:02:56]} 9. exd6 {[%clk 0:02:59]}  Bxd6 {[%clk 0:02:53]} 10. Bxg7 {[%clk 0:02:55]}  Rg8 {[%clk 0:02:52]} 11. Bb2 {[%clk 0:02:55]}  Bd7 {[%clk 0:02:41]} 12. Bg2 {[%clk 0:02:54]}  O-O-O {[%clk 0:02:41]} 13. Nc3 {[%clk 0:02:54]}  Nd4 {[%clk 0:02:28]} 14. Nxd4 {[%clk 0:02:50]}  cxd4 {[%clk 0:02:29]} 15. Ne4 {[%clk 0:02:50]}  Bc6 {[%clk 0:02:17]} 16. Nxd6+ {[%clk 0:02:16]}  Qxd6 {[%clk 0:02:16]} 17. Bxc6 {[%clk 0:02:16]}  Qxc6 {[%clk 0:02:17]} 18. O-O-O {[%clk 0:02:17]}  d3 {[%clk 0:02:10]} 19. Qe1 {[%clk 0:02:12]}  Qf3 {[%clk 0:01:58]} 20. Rf1 {[%clk 0:02:02]}  Nxh2 {[%clk 0:01:58]} 21. Rh1 {[%clk 0:01:56]}  Ng4 {[%clk 0:01:58]} 22. Rh5 {[%clk 0:01:36]}  Nxf2 {[%clk 0:01:47]} 23. Rc5+ {[%clk 0:01:36]}  Kd7 {[%clk 0:01:47]} 24. Be5 {[%clk 0:01:10]}  Rc8 {[%clk 0:01:34]} 0-1


[Site "https://www.chess.com"]

[Event "Titled Tuesday Blitz August 22 Early 2023"]
[White "Timofeev, Artyom"]
[Black "Ibadov, Dashgyn"]
[WhiteFideId "4140419"]
[BlackFideId "24107514"]
[WhiteElo "2840"]
[BlackElo "2583"]
[Result "1-0"]
[Round "4"]
[TimeControl "180+1"]
[Date "2023.08.22"]
[WhiteClock "0:00:30"]
[BlackClock "0:00:00"]
[Board "38"]

1. c4 {[%clk 0:03:00]}  Nf6 {[%clk 0:02:59]} 2. Nc3 {[%clk 0:03:00]}  c5 {[%clk 0:02:59]} 3. Nf3 {[%clk 0:02:58]}  e6 {[%clk 0:02:59]} 4. e4 {[%clk 0:02:58]}  d6 {[%clk 0:02:59]} 5. d4 {[%clk 0:02:56]}  cxd4 {[%clk 0:03:00]} 6. Nxd4 {[%clk 0:02:56]}  Be7 {[%clk 0:02:59]} 7. g3 {[%clk 0:02:55]}  a6 {[%clk 0:02:34]} 8. Bg2 {[%clk 0:02:54]}  Qc7 {[%clk 0:02:34]} 9. O-O {[%clk 0:02:52]}  Qxc4 {[%clk 0:02:23]} 10. Be3 {[%clk 0:02:51]}  Qc7 {[%clk 0:02:23]} 11. Rc1 {[%clk 0:02:51]}  Qd8 {[%clk 0:02:15]} 12. f4 {[%clk 0:02:49]}  O-O {[%clk 0:02:10]} 13. Kh1 {[%clk 0:02:44]}  Nc6 {[%clk 0:02:09]} 14. Na4 {[%clk 0:02:31]}  Bd7 {[%clk 0:01:49]} 15. Nc3 {[%clk 0:02:16]}  Nxd4 {[%clk 0:01:47]} 16. Bxd4 {[%clk 0:02:12]}  Bc6 {[%clk 0:01:47]} 17. Qe2 {[%clk 0:02:11]}  Rc8 {[%clk 0:01:35]} 18. g4 {[%clk 0:02:11]}  Nd7 {[%clk 0:01:27]} 19. Rcd1 {[%clk 0:02:07]}  Qc7 {[%clk 0:01:24]} 20. f5 {[%clk 0:01:52]}  Ne5 {[%clk 0:01:12]} 21. Be3 {[%clk 0:01:41]}  b5 {[%clk 0:01:09]} 22. a3 {[%clk 0:01:39]}  Qb7 {[%clk 0:01:07]} 23. g5 {[%clk 0:01:38]}  Rfe8 {[%clk 0:01:00]} 24. f6 {[%clk 0:01:32]}  Bf8 {[%clk 0:00:59]} 25. Bd4 {[%clk 0:01:27]}  a5 {[%clk 0:00:56]} 26. b4 {[%clk 0:01:18]}  axb4 {[%clk 0:00:56]} 27. axb4 {[%clk 0:01:18]}  Ra8 {[%clk 0:00:47]} 28. Rf2 {[%clk 0:01:12]}  g6 {[%clk 0:00:47]} 29. h4 {[%clk 0:01:10]}  Ra3 {[%clk 0:00:34]} 30. h5 {[%clk 0:01:08]}  Rea8 {[%clk 0:00:31]} 31. Rff1 {[%clk 0:01:07]}  Nc4 {[%clk 0:00:20]} 32. hxg6 {[%clk 0:01:06]}  hxg6 {[%clk 0:00:19]} 33. Rd3 {[%clk 0:00:53]}  e5 {[%clk 0:00:16]} 34. Bg1 {[%clk 0:00:51]}  Qd7 {[%clk 0:00:11]} 35. Rh3 {[%clk 0:00:48]}  Rb3 {[%clk 0:00:05]} 36. Rff3 {[%clk 0:00:35]}  Raa3 {[%clk 0:00:04]} 37. Rfg3 {[%clk 0:00:32]}  Ra1 {[%clk 0:00:00]} 38. Rh4 {[%clk 0:00:30]} 1-0


[Site "https://www.chess.com"]

[Event "Titled Tuesday Blitz August 22 Early 2023"]
[White "Mekhane, Adam"]
[Black "Zemlyanskii, Ivan"]
[WhiteFideId "36050601"]
[BlackFideId "24249971"]
[WhiteElo "2551"]
[BlackElo "2838"]
[Result "0-1"]
[Round "4"]
[TimeControl "180+1"]
[Date "2023.08.22"]
[WhiteClock "0:00:00"]
[BlackClock "0:01:30"]
[Board "39"]

1. e4 {[%clk 0:02:50]}  c5 {[%clk 0:03:00]} 2. Nf3 {[%clk 0:02:34]}  e6 {[%clk 0:02:58]} 3. g3 {[%clk 0:02:32]}  Nc6 {[%clk 0:02:57]} 4. Bg2 {[%clk 0:02:32]}  Nf6 {[%clk 0:02:58]} 5. O-O {[%clk 0:02:31]}  Nxe4 {[%clk 0:02:53]} 6. d4 {[%clk 0:02:27]}  d5 {[%clk 0:02:43]} 7. dxc5 {[%clk 0:01:33]}  Bxc5 {[%clk 0:02:44]} 8. c4 {[%clk 0:01:32]}  O-O {[%clk 0:02:41]} 9. cxd5 {[%clk 0:01:31]}  exd5 {[%clk 0:02:42]} 10. Nbd2 {[%clk 0:01:20]}  h6 {[%clk 0:02:27]} 11. Qc2 {[%clk 0:01:11]}  Nb4 {[%clk 0:02:04]} 12. Qb1 {[%clk 0:00:56]}  Bf5 {[%clk 0:01:58]} 13. a3 {[%clk 0:00:15]}  Nxg3 {[%clk 0:01:44]} 14. axb4 {[%clk 0:00:13]}  Ne2+ {[%clk 0:01:37]} 15. Kh1 {[%clk 0:00:10]}  Bxb1 {[%clk 0:01:38]} 16. bxc5 {[%clk 0:00:09]}  Bd3 {[%clk 0:01:36]} 17. Ne5 {[%clk 0:00:09]}  Nxc1 {[%clk 0:01:35]} 18. Raxc1 {[%clk 0:00:02]}  Bxf1 {[%clk 0:01:35]} 19. Rxf1 {[%clk 0:00:02]}  Qa5 {[%clk 0:01:31]} 20. Ndf3 {[%clk 0:00:01]}  Qxc5 {[%clk 0:01:28]} 21. Nd7 {[%clk 0:00:02]}  Qb5 {[%clk 0:01:29]} 22. Nxf8 {[%clk 0:00:00]}  Rxf8 {[%clk 0:01:30]} 0-1


[Site "https://www.chess.com"]